fUSD/lending_fUSD_20240713
["ID","MTS","AMOUNT","RATE_DAILY","PERIOD"]
[331936277,1720872637860,-136373.43320065,0.00014,2]
[331936278,1720872637872,-603.8553,0.00014,2]
[331936279,1720872637883,-16555.0,0.00014,2]
[331936283,1720872639396,-5373.89872731,0.00014,2]
[331936284,1720872639408,-3842.29055152,0.00014,2]
[331936285,1720872639450,-5052.1332027,0.00014,2]
[331936286,1720872639612,-4216.40882352,0.00014,2]
[331936287,1720872639624,-5225.92940308,0.00014,2]
[331936288,1720872639635,-8202.49793766,0.00014,2]
[331936289,1720872639649,-361.2130083,0.00014,2]
[331936290,1720872639662,-819.45729106,0.00014,2]
[331936291,1720872639675,-566.18888113,0.00014,2]
[331936292,1720872639690,-614.49500001,0.00014,2]
[331936293,1720872639702,-37214.59040144,0.00014,2]
[331936294,1720872639763,-1044.56112559,0.00014,2]
[331936295,1720872639775,-2818.80991683,0.00014,2]
[331936296,1720872639788,-53396.38772876,0.00014,2]
[331936297,1720872639801,-260.71455273,0.00014,2]
[331936326,1720872642467,-227.92524217,0.00013543,2]
[331936328,1720872642477,-1824.04078018,0.00014,2]
[331936333,1720872642520,-2491.92619443,0.00014,2]
[331936343,1720872643780,-8669.41116413,0.00014,2]
[331936344,1720872643791,-23577.2831281,0.00014,2]
[331936345,1720872643801,-3067.86384722,0.00014,2]
[331936346,1720872643812,-1174.52,0.00014,2]
[331936384,1720872645534,-862950.14807223,0.00014,2]
[331936393,1720872645590,-294.30708343,0.00014,2]
[331936397,1720872645749,-582.35454839,0.00014,2]
[331936398,1720872645760,-1073.98218702,0.00014,2]
[331936399,1720872645771,-990.84821868,0.00014,2]
[331936403,1720872842706,7756.34731647,0.00011199,2]
[331936404,1720872849577,3768.61597897,0.00011199,2]
[331936405,1720872923162,499.80686348,0.00011199,2]
[331936407,1720873040101,272.02468537,0.00011199,2]
[331936411,1720873135548,407.47074942,0.00011199,2]
[331936416,1720873199707,383.12,0.00010907,2]
[331936418,1720873256199,-1000.0,0.00012825,2]
[331936419,1720873256219,-250.0,0.00012845,2]
[331936420,1720873256240,-292.12,0.00012871,2]
[331936421,1720873256261,-250.0,0.00012985,2]
[331936422,1720873256281,-1250.0,0.00013,2]
[331936423,1720873256303,-383.12,0.00013171,2]
[331936424,1720873256324,-300.0,0.00013246,2]
[331936425,1720873256344,-10000.0,0.00013247,2]
[331936426,1720873256365,-164.65,0.00013343,2]
[331936427,1720873256386,-164.65,0.00013359,2]
[331936429,1720873271662,2594.55,0.00012946,2]
[331936447,1720873737609,344.8,0.00010974,2]
[331936481,1720873831737,-165.11,0.00012923,2]
[331936483,1720873831747,-250.0,0.00012929,2]
[331936485,1720873831756,-975.40507651,0.0001305,2]
[331936486,1720873831766,-344.8,0.00013238,2]
[331936488,1720873831776,-164.65,0.00013376,2]
[331936490,1720873831786,-164.65,0.00013393,2]
[331936491,1720873831795,-164.65,0.00013409,2]
[331936492,1720873831807,-178.21,0.0001342,2]
[331936493,1720873831819,-1015.13935784,0.00013574,2]
[331936494,1720873831831,-1015.13935784,0.00013574,2]
[331936495,1720873831842,-832.53,0.000136,2]
[331936496,1720873831852,-832.53,0.000136,2]
[331936497,1720873831861,-188.21,0.000136,2]
[331936498,1720873831871,-300.0,0.00013698,2]
[331936499,1720873831880,-1744.62,0.00013699,2]
[331936500,1720873831891,-471.39,0.00013699,2]
[331936501,1720873831900,-250.0,0.00013699,2]
[331936502,1720873831912,-345.44,0.00013699,2]
[331936503,1720873831923,-1878.95,0.00013699,2]
[331936504,1720873831934,-832.53,0.000137,2]
[331936505,1720873831943,-419.58,0.000137,2]
[331936506,1720873831952,-832.53,0.000137,2]
[331936507,1720873831961,-419.0,0.000137,2]
[331936508,1720873831971,-832.53,0.000137,2]
[331936509,1720873831980,-691.75367351,0.00013759,2]
[331936510,1720873831990,-150.0,0.00013797,2]
[331936511,1720873831999,-3133.07,0.00013799,2]
[331936512,1720873832008,-34411.7506,0.00013799,2]
[331936513,1720873832020,-319.58875706,0.00013799,2]
[331936514,1720873832031,-419.58,0.000138,2]
[331936515,1720873832040,-174.19,0.000138,2]
[331936516,1720873832050,-419.58,0.000138,2]
[331936517,1720873832060,-832.53,0.000138,2]
[331936518,1720873832071,-419.58,0.000138,2]
[331936519,1720873832082,-832.53,0.000138,2]
[331936520,1720873832093,-202.11866718,0.000138,2]
[331936521,1720873832103,-202.11866717,0.00013825,2]
[331936524,1720873832113,-202.11866717,0.0001385,2]
[331936527,1720873832122,-202.11866717,0.00013875,2]
[331936529,1720873832135,-167.56,0.00013889,3]
[331936531,1720873832144,-616.82428796,0.00013889,2]
[331936533,1720873832153,-210.77020957,0.0001389,2]
[331936535,1720873832162,-13857.129,0.00013897,2]
[331936537,1720873832172,-355.89480814,0.00013897,2]
[331936539,1720873832181,-358.10013249,0.00013898,2]
[331936541,1720873832190,-501.53636851,0.00013898,2]
[331936542,1720873832200,-752.24,0.00013898,2]
[331936543,1720873832209,-1008.43,0.00013898,2]
[331936544,1720873832219,-500.0,0.00013898,2]
[331936545,1720873832228,-500.0,0.00013898,2]
[331936547,1720873832238,-219.79550471,0.00013898,2]
[331936549,1720873832247,-500.0,0.00013898,2]
[331936551,1720873832256,-596.37,0.00013898,2]
[331936554,1720873832266,-651.55,0.00013898,2]
[331936555,1720873832275,-3932.65,0.00013898,2]
[331936556,1720873832285,-346.64213393,0.00013898,2]
[331936557,1720873832294,-5913.87918723,0.00013899,2]
[331936558,1720873832306,-264.78577028,0.00013899,2]
[331936559,1720873832324,-14751.60469074,0.00013899,2]
[331936560,1720873832335,-315.04,0.00013899,2]
[331936561,1720873832350,-821.72,0.00013899,2]
[331936562,1720873832361,-781.95019923,0.00013899,2]
[331936563,1720873832372,-2130.44985288,0.00013899,2]
[331936564,1720873832384,-827.13712285,0.00013899,2]
[331936565,1720873832395,-12613.74830231,0.00013899,2]
[331936566,1720873832405,-600.0,0.00013899,2]
[331936567,1720873832416,-674.0,0.00013899,2]
[331936568,1720873832428,-418.90217464,0.00013899,2]
[331936569,1720873832441,-600.243895,0.00013899,2]
[331936570,1720873832452,-373654.35702603,0.00013899,2]
[331936571,1720873832468,-700.36347463,0.00013899,2]
[331936572,1720873832479,-341.42630098,0.00013899,2]
[331936573,1720873832489,-271.2999999,0.00013899,2]
[331936574,1720873832506,-18506.10361351,0.00013899,2]
[331936575,1720873832517,-941.26867698,0.00013899,2]
[331936593,1720873837715,-444.271135,0.00013802,2]
[331936594,1720873837725,-156.417845,0.00013899,2]
[331936595,1720873837737,-31716.55471022,0.00013899,2]
[331936596,1720873837748,-2307.51909693,0.00013899,2]
[331936597,1720873837777,-5243.22356511,0.00013899,2]
[331936598,1720873837789,-36278.80581454,0.00013899,2]
[331936599,1720873837799,-616.82428796,0.00013899,2]
[331936600,1720873837808,-1464.4626,0.000139,2]
[331936601,1720873837819,-156.0208,0.000139,2]
[331936602,1720873837829,-39483.4685,0.000139,2]
[331936603,1720873837839,-100000.0,0.000139,2]
[331936604,1720873837848,-10023.6389,0.000139,2]
[331936605,1720873837859,-500.0,0.000139,2]
[331936606,1720873837868,-222268.7262,0.000139,2]
[331936607,1720873837877,-1838.7809,0.000139,2]
[331936608,1720873837887,-1277.7127,0.000139,2]
[331936609,1720873837896,-202.11866717,0.000139,2]
[331936610,1720873837906,-162.63608918,0.000139,2]
[331936611,1720873837916,-1920.4044,0.00013918,2]
[331936612,1720873837926,-752.24,0.00013953,2]
[331936613,1720873837935,-1008.43,0.00013953,2]
[331936614,1720873837946,-500.0,0.00013953,2]
[331936615,1720873837956,-500.0,0.00013953,2]
[331936616,1720873837966,-596.37,0.00013953,2]
[331936617,1720873837976,-651.55,0.00013953,2]
[331936618,1720873837985,-3932.65,0.00013953,2]
[331936619,1720873837995,-549.0,0.00013953,2]
[331936620,1720873838004,-3277.0,0.00013953,2]
[331936621,1720873838014,-1990.0,0.00013953,2]
[331936622,1720873838024,-1830.0,0.00013953,2]
[331936623,1720873838033,-1660.0,0.00013953,2]
[331936624,1720873838043,-449.0,0.00013953,2]
[331936625,1720873838052,-809.0,0.00013953,2]
[331936626,1720873838061,-444.0,0.00013953,2]
[331936627,1720873838071,-619.0,0.00013953,2]
[331936628,1720873838080,-2847.15846512,0.00013997,2]
[331936629,1720873838089,-719.1309999,0.00013998,2]
[331936630,1720873838099,-500.0,0.00013999,2]
[331936631,1720873838108,-280.6834284,0.00013999,2]
[331936632,1720873838117,-609.18629015,0.00013999,2]
[331936633,1720873838127,-500.0,0.00013999,2]
[331936634,1720873838136,-500.0,0.00013999,2]
[331936635,1720873838146,-554.96695085,0.00013999,2]
[331936636,1720873838157,-160.0998215,0.00013999,2]
[331936637,1720873838169,-600.76,0.00013999,2]
[331936638,1720873838179,-472.23,0.00013999,2]
[331936639,1720873838189,-500.0,0.00013999,2]
[331936640,1720873838199,-528.0,0.00013999,2]
[331936641,1720873838208,-146429.48495528,0.00014,2]
[331936642,1720873838217,-55664.37652058,0.00014,2]
[331936643,1720873838237,-598.0,0.00014,2]
[331936644,1720873838248,-1876.43931272,0.00014,2]
[331936645,1720873838259,-531.79482725,0.00014,2]
[331936646,1720873838271,-417.84487201,0.00014,2]
[331936647,1720873838285,-971.35108145,0.00014,2]
[331936648,1720873838296,-816.70025,0.00014,2]
[331936649,1720873838316,-4771.20656145,0.00014,2]
[331936650,1720873838328,-652.16989619,0.00014,2]
[331936651,1720873838340,-7072.08,0.00014,2]
[331936652,1720873838352,-408737.92791366,0.00014,2]
[331936653,1720873838364,-40460.0,0.00014,2]
[331936658,1720873839864,-522.77982189,0.00014,2]
[331936659,1720873839875,-1283.9577871,0.00014,2]
[331936660,1720873840034,-584.4,0.00014,2]
[331936661,1720873840046,-676.47483956,0.00014,2]
[331936662,1720873840061,-665.59101305,0.00014,2]
[331936663,1720873840159,-21922.23458186,0.00014,2]
[331936664,1720873840171,-1043.21965598,0.00014,2]
[331936696,1720873843963,-2392.646,0.00013953,2]
[331936697,1720873843972,-1561.17327455,0.00014,2]
[331936698,1720873843984,-918.6295032,0.00014,2]
[331936699,1720873843996,-14159.92850879,0.00014,2]
[331936700,1720873844008,-362.07437022,0.00014,2]
[331936701,1720873844021,-1262.10257877,0.00014,2]
[331936702,1720873844033,-5993.96581954,0.00014,2]
[331936703,1720873844046,-10397.62039256,0.00014,2]
[331936704,1720873844057,-559.3204607,0.00014,2]
[331936705,1720873844069,-490.81734235,0.00014,2]
[331936706,1720873844081,-1448.63415379,0.00014,2]
[331936707,1720873844092,-4853.45619711,0.00014,2]
[331936708,1720873844104,-1200.0,0.00014,2]
[331936709,1720873844115,-498.7999998,0.00014,2]
[331936710,1720873844126,-4650.0,0.00014,2]
[331936711,1720873844137,-1007.77855702,0.00014,2]
[331936724,1720873845917,-15734.435,0.00014,2]
[331936725,1720873845928,-673.46432981,0.00014,2]
[331936726,1720873846251,-1350.0,0.00013963,2]
[331936727,1720873846260,-1688.96526228,0.00014,2]
[331936738,1720873954584,1000.55255334,0.00025,60]
[331936741,1720874018518,691.75367351,0.00011199,2]
[331936744,1720874087854,544.54505378,0.00011199,2]
[331936745,1720874102256,170.58758288,0.00011199,2]
[331936746,1720874110298,156.0656565,0.00011199,2]
[331936750,1720874154002,390.45221518,0.00011199,2]
[331936751,1720874158675,171.48571229,0.00011199,2]
[331936756,1720874261947,31154.96616872,0.00011199,2]
[331936757,1720874261976,26500.0,0.00011199,2]
[331936758,1720874261999,20000.0,0.00011199,2]
[331936759,1720874262023,20000.0,0.00011199,2]
[331936760,1720874262046,3350.91,0.00011199,2]
[331936761,1720874262069,20000.0,0.00011199,2]
[331936762,1720874262092,100000.0,0.00011199,2]
[331936763,1720874262117,14896.09904963,0.00011199,2]
[331936766,1720874271619,334.02,0.00010978,2]
[331936771,1720874347952,235901.97521835,0.00010978,2]
[331936772,1720874421955,235901.97521835,0.00010978,2]
[331936773,1720874509287,684.75373736,0.00011199,2]
[331936774,1720874512967,235901.97521835,0.00010978,2]
[331936775,1720874576601,150.0,0.00025,60]
[331936777,1720874612950,40075.69177182,0.00010978,2]
[331936789,1720874754816,1500.0,0.00025,120]
[331936790,1720874819551,169.0860346,0.00011199,2]
[331936795,1720874951780,-300.0,0.0001227,2]
[331936796,1720874951803,-20392.3,0.00012271,2]
[331936797,1720874951824,-168.86,0.00012318,2]
[331936798,1720874951847,-205.0,0.0001234,2]
[331936799,1720874951868,-205.0,0.0001242,2]
[331936800,1720874951889,-205.0,0.0001251,2]
[331936801,1720874951911,-1000.0,0.00012575,2]
[331936802,1720874951934,-250.0,0.00012589,2]
[331936803,1720874951959,-205.0,0.000126,2]
[331936804,1720874951982,-233.69,0.00012639,2]
[331936805,1720874952005,-150.0,0.00012658,2]
[331936806,1720874952026,-200.0,0.00012684,2]
[331936807,1720874952049,-205.0,0.0001269,2]
[331936808,1720874952071,-250.0,0.00012692,2]
[331936809,1720874952092,-205.0,0.0001277,2]
[331936810,1720874952113,-1643.3148,0.00012823,2]
[331936811,1720874952135,-205.0,0.0001286,2]
[331936812,1720874952158,-294.96,0.00012895,2]
[331936813,1720874952182,-205.0,0.0001295,2]
[331936814,1720874952203,-1250.0,0.00013,2]
[331936815,1720874952226,-205.0,0.0001304,2]
[331936816,1720874952247,-205.0,0.0001312,2]
[331936817,1720874952269,-2203.21631698,0.00013128,2]
[331936818,1720874952292,-205.0,0.0001321,2]
[331936819,1720874952313,-419.58,0.00013241,2]
[331936820,1720874952334,-962.17,0.00013241,2]
[331936821,1720874952355,-419.58,0.00013241,2]
[331936822,1720874952378,-334.02,0.00013242,2]
[331936823,1720874952407,-205.0,0.000133,2]
[331936824,1720874952427,-188.85,0.00013341,2]
[331936825,1720874952449,-150.0,0.00013341,2]
[331936826,1720874952470,-205.0,0.0001339,2]
[331936827,1720874952492,-27527.0,0.00013448,2]
[331936828,1720874952515,-420.0,0.00013466,2]
[331936829,1720874952535,-205.0,0.0001347,2]
[331936830,1720874952557,-12812.50479459,0.000135,2]
[331936831,1720874952578,-155.0,0.000135,2]
[331936832,1720874952599,-380.527368,0.00013515,2]
[331936833,1720874952620,-205.0,0.0001356,2]
[331936834,1720874952641,-205.0,0.0001365,2]
[331936835,1720874952663,-380.527368,0.00013684,2]
[331936836,1720874952686,-505.38787401,0.00013698,2]
[331936837,1720874952707,-814.55,0.00013698,2]
[331936838,1720874952728,-500.0,0.00013698,2]
[331936839,1720874952750,-2853.9,0.00013698,2]
[331936840,1720874952777,-286.51636739,0.00013698,2]
[331936841,1720874952805,-500.0,0.00013698,2]
[331936842,1720874952830,-2790.23,0.00013699,2]
[331936843,1720874952854,-484.45,0.00013699,2]
[331936844,1720874952879,-250.0,0.00013699,2]
[331936845,1720874952904,-1080.27,0.00013699,2]
[331936846,1720874952930,-205.07300168,0.00013722,2]
[331936847,1720874952960,-205.0,0.0001374,2]
[331936848,1720874952986,-814.55,0.00013753,2]
[331936849,1720874953014,-500.0,0.00013753,2]
[331936850,1720874953042,-2853.9,0.00013753,2]
[331936851,1720874953067,-500.0,0.00013753,2]
[331936852,1720874953092,-235.2687,0.00013799,2]
[331936853,1720874953117,-3103.9289,0.00013799,2]
[331936854,1720874953142,-23335.414,0.00013799,2]
[331936855,1720874953164,-2965.0683,0.00013799,2]
[331936856,1720874953189,-387.60445962,0.00013799,2]
[331936857,1720874953217,-387.60445956,0.00013807,2]
[331936858,1720874953243,-814.55,0.00013808,2]
[331936859,1720874953270,-500.0,0.00013808,2]
[331936860,1720874953294,-2853.9,0.00013808,2]
[331936861,1720874953321,-500.0,0.00013808,2]
[331936862,1720874953347,-387.60445956,0.00013818,2]
[331936863,1720874953369,-205.0,0.0001382,2]
[331936864,1720874953392,-214.0,0.0001383,2]
[331936865,1720874953419,-387.60445956,0.0001383,2]
[331936866,1720874953446,-387.60445956,0.00013842,2]
[331936867,1720874953474,-214.0,0.0001385,2]
[331936868,1720874953499,-380.527368,0.00013853,2]
[331936869,1720874953526,-387.60445956,0.00013853,2]
[331936870,1720874953549,-214.0,0.0001386,2]
[331936871,1720874953574,-200.0,0.0001386,2]
[331936872,1720874953599,-814.55,0.00013863,2]
[331936873,1720874953623,-500.0,0.00013863,2]
[331936874,1720874953648,-2853.9,0.00013863,2]
[331936875,1720874953673,-500.0,0.00013863,2]
[331936876,1720874953698,-2015.6022,0.00013863,2]
[331936877,1720874953723,-387.60445956,0.00013865,2]
[331936878,1720874953748,-387.60445956,0.00013877,2]
[331936879,1720874953771,-214.0,0.0001388,2]
[331936880,1720874953795,-200.0,0.0001388,2]
[331936881,1720874953819,-500.0,0.00013888,2]
[331936882,1720874953843,-200.0,0.00013888,2]
[331936883,1720874953868,-387.60445956,0.00013888,2]
[331936884,1720874953892,-200.0,0.0001389,2]
[331936885,1720874953916,-214.0,0.0001389,2]
[331936886,1720874953940,-19279.9562,0.0001389,2]
[331936887,1720874953967,-500.0,0.00013898,2]
[331936888,1720874953990,-500.0,0.00013898,2]
[331936889,1720874954018,-500.0,0.00013898,2]
[331936890,1720874954042,-575.73,0.00013898,2]
[331936891,1720874954067,-7500.0,0.000139,2]
[331936892,1720874954090,-317.65,0.000139,2]
[331936893,1720874954114,-188.88739323,0.000139,2]
[331936894,1720874954138,-319.75791783,0.000139,2]
[331936895,1720874954163,-1289.55537257,0.000139,2]
[331936896,1720874954186,-387.60445956,0.000139,2]
[331936897,1720874954211,-846.75991849,0.000139,2]
[331936898,1720874954234,-2103.99591094,0.000139,2]
[331936899,1720874954259,-200.0,0.0001391,2]
[331936900,1720874954282,-214.0,0.0001391,2]
[331936901,1720874954305,-205.0,0.0001391,2]
[331936902,1720874954329,-814.55,0.00013917,2]
[331936903,1720874954354,-500.0,0.00013917,2]
[331936904,1720874954377,-2853.9,0.00013917,2]
[331936905,1720874954400,-566.99363085,0.00013917,2]
[331936906,1720874954423,-214.0,0.0001392,2]
[331936907,1720874954446,-200.0,0.0001392,2]
[331936908,1720874954469,-200.0,0.0001394,2]
[331936909,1720874954492,-214.0,0.0001394,2]
[331936910,1720874954517,-200.0,0.0001395,2]
[331936911,1720874954542,-214.0,0.0001395,2]
[331936912,1720874954566,-500.0,0.00013953,2]
[331936913,1720874954591,-298.72476283,0.00013953,2]
[331936914,1720874954615,-575.73,0.00013953,2]
[331936915,1720874954640,-597.26,0.00013962,2]
[331936916,1720874954664,-5182.0,0.00013963,2]
[331936917,1720874954688,-5817.0,0.00013963,2]
[331936918,1720874954712,-361.0,0.00013963,2]
[331936919,1720874954735,-1251.0,0.00013963,2]
[331936920,1720874954757,-1830.0,0.00013963,2]
[331936921,1720874954778,-1660.0,0.00013963,2]
[331936922,1720874955015,-1200.0,0.00013963,2]
[331936923,1720874955039,-38281.0,0.00013963,2]
[331936924,1720874955062,-1666.0,0.00013963,2]
[331936925,1720874955084,-444.0,0.00013963,2]
[331936926,1720874955105,-934.447,0.00013963,2]
[331936927,1720874955127,-1253.0,0.00013963,2]
[331936928,1720874955148,-3277.0,0.00013963,2]
[331936929,1720874955169,-549.0,0.00013963,2]
[331936930,1720874955190,-1990.0,0.00013963,2]
[331936931,1720874955211,-200.0,0.0001397,2]
[331936932,1720874955232,-214.0,0.0001397,2]
[331936933,1720874955253,-814.55,0.00013972,2]
[331936934,1720874955276,-500.0,0.00013972,2]
[331936935,1720874955298,-2853.9,0.00013972,2]
[331936936,1720874955319,-2000.0,0.00013973,3]
[331936937,1720874955339,-200.0,0.0001398,2]
[331936938,1720874955360,-214.0,0.0001398,2]
[331936939,1720874955381,-200.0,0.0001399,2]
[331936940,1720874955403,-214.0,0.0001399,2]
[331936941,1720874955424,-287.174469,0.0001399,2]
[331936942,1720874955447,-287.174469,0.0001399,2]
[331936943,1720874955469,-287.174469,0.0001399,2]
[331936944,1720874955490,-287.174469,0.0001399,2]
[331936945,1720874955514,-287.174469,0.0001399,2]
[331936946,1720874955536,-205.0,0.0001399,2]
[331936947,1720874955559,-10137.0403272,0.0001399,3]
[331936948,1720874955579,-2562.44261859,0.00013997,2]
[331936949,1720874956399,-287.174469,0.00013998,2]
[331936950,1720874956421,-500.0,0.00013998,2]
[331936951,1720874956443,-500.0,0.00013998,2]
[331936952,1720874956464,-508.15424084,0.00013998,2]
[331936953,1720874956485,-509.67775641,0.00013998,2]
[331936954,1720874956508,-505.32278749,0.00013998,2]
[331936955,1720874956533,-500.0,0.00013998,2]
[331936956,1720874956554,-508.34471066,0.00013998,2]
[331936957,1720874956575,-500.0,0.00013998,2]
[331936958,1720874956597,-500.0,0.00013998,2]
[331936959,1720874956622,-500.0,0.00013998,2]
[331936960,1720874956643,-500.0,0.00013998,2]
[331936961,1720874956665,-419.52031559,0.00013999,2]
[331936962,1720874956686,-231.30161337,0.00013999,2]
[331936965,1720874978829,1647.901659,0.00025,120]
[331936994,1720875032988,-855.07,0.00013041,2]
[331936995,1720875032998,-702.11,0.00013241,2]
[331936996,1720875033008,-731.2667,0.00013863,2]
[331936997,1720875033018,-581.8249,0.000139,2]
[331936998,1720875033029,-597.24009089,0.000139,2]
[331936999,1720875033039,-7466.3981127,0.000139,2]
[331937000,1720875033050,-500.0,0.00013962,2]
[331937001,1720875033060,-150.501,0.00013963,2]
[331937002,1720875033069,-200.0,0.00013963,2]
[331937003,1720875033081,-150.446,0.00013963,2]
[331937004,1720875033091,-155.0,0.00013989,2]
[331937005,1720875033101,-300.0,0.00013998,2]
[331937006,1720875033111,-268.69838663,0.00013999,2]
[331937007,1720875033121,-238.4768656,0.00013999,2]
[331937008,1720875033131,-924.39,0.00013999,2]
[331937009,1720875033141,-671.67,0.00013999,2]
[331937010,1720875033151,-452.56,0.00013999,2]
[331937011,1720875033160,-2891.45,0.00013999,2]
[331937012,1720875033170,-535.0,0.00014,2]
[331937013,1720875033180,-40485.59472384,0.00014,2]
[331937014,1720875033192,-351.56071379,0.00014,2]
[331937015,1720875033204,-23410.80000002,0.00014,2]
[331937016,1720875033216,-544.0998858,0.00014,2]
[331937017,1720875033284,-870.73526763,0.00014,2]
[331937018,1720875033297,-423.56713528,0.00014,2]
[331937019,1720875033308,-4281.9081366,0.00014,2]
[331937020,1720875033319,-6127.228,0.00014,2]
[331937021,1720875033331,-5695.5,0.00014,2]
[331937022,1720875033342,-4443.51873846,0.00014,2]
[331937023,1720875033353,-1442.01221234,0.00014,2]
[331937024,1720875033364,-1180.74374656,0.00014,2]
[331937034,1720875037930,-3872.7,0.00013698,2]
[331937035,1720875037941,-993.50819333,0.00013753,2]
[331937036,1720875037954,-2879.19180667,0.00013753,2]
[331937037,1720875037964,-3872.7,0.00013808,2]
[331937038,1720875037974,-3872.7,0.00013863,2]
[331937039,1720875037986,-2937.1749405,0.00013917,2]
[331937040,1720875037999,-935.5250595,0.00013917,2]
[331937041,1720875038010,-3152.21198153,0.00013972,2]
[331937042,1720875038029,-720.48801847,0.00013972,2]
[331937043,1720875038039,-267.65376377,0.00013989,2]
[331937044,1720875038048,-139329.67075829,0.00014,2]
[331937045,1720875038060,-23365.04017617,0.00014,2]
[331937046,1720875038073,-482404.29293035,0.00014,2]
[331937047,1720875038084,-2503.61,0.00014,2]
[331937048,1720875038093,-3152.0,0.00014,2]
[331937049,1720875038102,-3000.0,0.00014,2]
[331937050,1720875038112,-3000.0,0.00014,2]
[331937051,1720875038122,-39.00717736,0.00014,2]
[331937052,1720875038134,-94956.43627235,0.00014,2]
[331937053,1720875038151,-1178.17123837,0.00014,2]
[331937054,1720875038163,-1632.3621893,0.00014,2]
[331937055,1720875038204,-150.0,0.00013963,2]
[331937056,1720875038213,-5863.54131141,0.00014,2]
[331937057,1720875038233,-150.0,0.00013963,2]
[331937058,1720875038242,-3264.75,0.00014,2]
[331937064,1720875040117,-21148.61220765,0.00014,2]
[331937065,1720875040128,-731.68048734,0.00014,2]
[331937066,1720875040178,-7054.56,0.00014,2]
[331937067,1720875040237,-588.17,0.00014,2]
[331937068,1720875040329,-3792.52731285,0.00014,2]
[331937069,1720875040340,-900.90712175,0.00014,2]
[331937070,1720875040351,-1035.09768575,0.00014,2]
[331937071,1720875040367,-475.42999996,0.00014,2]
[331937076,1720875042995,-1310.01098762,0.00014,2]
[331937077,1720875043056,-117436.3372042,0.00014,2]
[331937078,1720875043069,-8068.01325135,0.00014,2]
[331937079,1720875043079,-8783.19619374,0.00014,2]
[331937080,1720875043092,-288.593034,0.00014,2]
[331937081,1720875043103,-19806.34964143,0.00014,2]
[331937086,1720875044195,-285.43780332,0.00014,2]
[331937087,1720875044205,-6715.14982374,0.00014,2]
[331937088,1720875044218,-1224.5387,0.00014,2]
[331937089,1720875044229,-1738.02113,0.00014,2]
[331937090,1720875044240,-573691.85870902,0.00014,2]
[331937091,1720875044251,-28504.50106015,0.00014,2]
[331937092,1720875044262,-680.84002523,0.00014,2]
[331937150,1720875046230,-1383.975,0.00013239,2]
[331937151,1720875046243,-2205.695,0.00013239,2]
[331937152,1720875046256,-2136.53960588,0.00013239,2]
[331937153,1720875046267,-619.7921812,0.00013239,2]
[331937154,1720875046372,-2231.13935299,0.00013239,2]
[331937155,1720875046383,-444.0,0.00013239,2]
[331937156,1720875046394,-578.35232665,0.00013239,2]
[331937288,1720875048049,-5140.69857593,0.00013239,2]
[331937291,1720875048066,-6362.28804746,0.00013239,2]
[331937293,1720875048078,-522.23783259,0.00013239,2]
[331937519,1720875073838,323.53,0.00011144,2]
[331937520,1720875105011,164.72,0.00010209,2]
[331937521,1720875123981,86521.54500929,0.00011144,2]
[331937522,1720875139288,181.35779148,0.00011144,2]
[331937523,1720875141588,173.23,0.00010317,2]
[331937524,1720875144628,260.75924553,0.00011144,2]
[331937525,1720875149501,332.70837348,0.0001126,2]
[331937526,1720875157438,290.89367873,0.00010317,2]
[331937527,1720875164489,414.0867539,0.00011144,2]